bitfinex/quotes_SOLUSD_20220227
["timestamp","ask_amount","ask_price","bid_price","bid_amount"]
[1645923096070,17.0109,88.26,88.181,2.26277708]
[1645923096474,18.05225562,88.262,88.182,2.78967761]
[1645923096678,18.05225562,88.262,88.19,17.0105]
[1645923096873,18.05225562,88.262,88.191,2.70675245]
[1645923097273,17.0092,88.27,88.191,2.70675245]
[1645923097976,18.05225562,88.278,88.2,17.0085]
[1645923098183,21.63096082,88.305,88.21,16.43]
[1645923098475,4.532,88.304,88.212,2.62347084]
[1645923098875,21.63096082,88.305,88.214,2.82395641]
[1645923099474,17.0022,88.31,88.231,113.6]
[1645923099673,18.05225562,88.312,88.231,113.6]
[1645923099674,2.3516072,88.321,88.24,16.43]
[1645923099875,2.3516072,88.321,88.241,2.86064664]
[1645923100177,2.3516072,88.321,88.242,2.81883745]
[1645923100575,2.3516072,88.321,88.242,5.56562666]
[1645923100777,2.3516072,88.321,88.243,2.74678921]
[1645923101377,2.3516072,88.321,88.25,16.9979]
[1645923101594,2.3516072,88.321,88.26,16.43]
[1645923101775,2.3516072,88.321,88.261,2.81015225]
[1645923101975,2.3516072,88.321,88.262,3.12486418]
[1645923102175,2.3516072,88.321,88.263,0.25]
[1645923102375,2.3516072,88.321,88.263,113.85]
[1645923102576,2.3516072,88.321,88.27,16.9888]
[1645923102776,2.3516072,88.321,88.28,16.43]
[1645923102976,2.3516072,88.321,88.281,2.4463481]
[1645923103176,2.3516072,88.321,88.253,2.67916581]
[1645923103577,45.71094082,88.32,88.234,2.43638769]
[1645923103775,112.2,88.315,88.234,2.43638769]
[1645923103978,1.81593025,88.314,88.221,2.3687894]
[1645923104180,4.531,88.313,88.221,2.3687894]
[1645923104375,25.99567107,88.314,88.221,2.3687894]
[1645923104577,1.81593025,88.314,88.221,2.3687894]
[1645923104775,17.0053,88.3,88.221,2.3687894]
[1645923104976,6.02268715,88.299,88.221,2.3687894]
[1645923105177,30.20242797,88.299,88.22,16.43]
[1645923105374,30.20242797,88.299,88.123,4.538]
[1645923105375,23.30582953,88.298,88.176,2.5535101]
[1645923105576,112.2,88.281,88.181,2.63489282]
[1645923105875,112.2,88.281,88.176,3.12006625]
[1645923105876,1.41303206,88.279,88.176,3.12006625]
[1645923106280,1.38080372,88.278,88.176,3.12006625]
[1645923107279,1.68572665,88.269,88.176,3.12006625]
[1645923107480,4.533,88.268,88.176,3.12006625]
[1645923107882,24.17974082,88.267,88.176,3.12006625]
[1645923108083,4.534,88.266,88.176,3.12006625]
[1645923108478,1.43077123,88.276,88.176,3.12006625]
[1645923108881,4.533,88.275,88.176,3.12006625]
[1645923109080,11.35674006,88.278,88.176,3.12006625]
[1645923109283,1.74029048,88.277,88.176,3.12006625]
[1645923109479,17.0134,88.25,88.18,17.0108]
[1645923109681,17.0134,88.25,88.181,2.52507438]
[1645923114891,4.534,88.269,88.181,2.52507438]
[1645923114892,4.534,88.269,88.19,17.0097]
[1645923115090,4.533,88.277,88.191,2.40711768]
[1645923115387,5.99709108,88.277,88.176,3.01257214]
[1645923116090,1.54753867,88.276,88.181,2.92409318]
[1645923116392,4.533,88.275,88.181,2.92409318]
[1645923116588,17.0106,88.26,88.181,2.92409318]
[1645923118087,17.0106,88.26,88.19,30.6297]
[1645923118290,17.0106,88.26,88.191,2.44748062]
[1645923118488,28.71274082,88.293,88.191,2.44748062]
[1645923118489,17.0082,88.27,88.191,2.44748062]
[1645923118691,17.0082,88.27,88.191,116.04748062]
[1645923118890,4.533,88.288,88.192,2.87902568]
[1645923119191,56.6919,88.3,88.192,2.87902568]
[1645923120198,17.0042,88.29,88.202,2.90708621]
[1645923120394,17.0042,88.29,88.21,13.62]
[1645923120596,4.532,88.314,88.211,113.6]
[1645923120799,21.87596592,88.313,88.212,2.90297471]
[1645923120998,4.531,88.312,88.212,2.90297471]
[1645923121200,21.87596592,88.313,88.212,2.90297471]
[1645923121602,17.0022,88.3,88.22,17.0027]
[1645923121800,17.0022,88.3,88.221,2.40346442]
[1645923122213,17.0022,88.3,88.221,116.31409004]
[1645923122409,17.0022,88.3,88.222,2.46303518]
[1645923123611,17.0002,88.31,88.231,2.93593]
[1645923124008,17.0002,88.31,88.222,2.61739442]
[1645923124209,112.2,88.315,88.233,2.31528645]
[1645923124410,112.2,88.315,88.242,2.30450371]
[1645923124610,112.2,88.315,88.26,16.9968]
[1645923124813,112.2,88.315,88.261,2.80025818]
[1645923126816,17.0001,88.31,88.24,13.62]
[1645923127015,17.0001,88.31,88.221,2.48660805]
[1645923127214,6.19089527,88.309,88.221,2.48660805]
[1645923127418,1.5294449,88.308,88.221,2.48660805]
[1645923127614,5.92443672,88.307,88.221,2.48660805]
[1645923127814,30.10417754,88.307,88.221,2.48660805]
[1645923128114,25.71297374,88.306,88.221,2.48660805]
[1645923128315,5.95169484,88.305,88.221,2.48660805]
[1645923128613,17.0075,88.29,88.211,2.54207352]
[1645923129413,4.532,88.299,88.211,2.54207352]
[1645923129414,1.47890248,88.289,88.211,2.54207352]
[1645923129615,4.532,88.288,88.194,2.7672992]
[1645923129818,1.44201139,88.269,88.201,2.84387016]
[1645923130120,6.25239405,88.268,88.166,2.66269191]
[1645923130317,32.23878821,88.268,88.166,2.66269191]
[1645923130516,1.75972567,88.267,88.166,2.66269191]
[1645923130717,17.0162,88.25,88.166,2.66269191]
[1645923131132,17.0162,88.25,88.139,2.74678921]
[1645923131133,32.0023304,88.249,88.151,2.76239492]
[1645923131321,1.44937467,88.248,88.131,2.28013364]
[1645923131621,1.76117908,88.247,88.13,13.62]
[1645923131821,4.535,88.246,88.13,13.62]
[1645923132019,17.0207,88.23,88.13,30.6423]
[1645923132222,17.0207,88.23,88.11,56.7369]
[1645923132223,6.36800586,88.229,88.131,2.77078948]
[1645923132420,28.24397178,88.229,88.112,3.962]
[1645923132622,1.50358173,88.228,88.092,2.74678921]
[1645923132820,4.537,88.227,88.093,3.962]
[1645923133221,4.537,88.227,88.094,140.99370605]
[1645923133420,17.0205,88.21,88.095,3.09232209]
[1645923133623,4.537,88.229,88.096,113.85]
[1645923133819,56.7349,88.23,88.111,113.6]
[1645923134021,56.7349,88.23,88.112,2.99075828]
[1645923134321,17.0171,88.22,88.112,2.99075828]
[1645923134521,17.0171,88.22,88.113,2.74678921]
[1645923134720,56.7208,88.25,88.115,2.50086586]
[1645923134920,73.2588,88.259,88.118,2.41060288]
[1645923135127,73.2588,88.259,88.132,2.99869458]
[1645923135322,73.2588,88.259,88.134,2.51403441]
[1645923135524,17.0114,88.25,88.162,2.67896914]
[1645923135723,17.0114,88.25,88.164,2.80171126]
[1645923136527,17.0114,88.25,88.163,116.34678921]
[1645923136528,17.0114,88.25,88.18,17.0114]
[1645923136728,17.0114,88.25,88.181,3.10869632]
[1645923139129,17.0114,88.25,88.17,17.0151]
[1645923139329,17.0114,88.25,88.171,2.53280962]
[1645923142941,15.4488723,88.25,88.171,2.53280962]
[1645923143440,17.0181,88.23,88.161,2.96429952]
[1645923145242,17.0181,88.23,88.17,17.0152]
[1645923145448,17.0181,88.23,88.171,2.68310596]
[1645923145643,21.87596592,88.249,88.171,2.68310596]
[1645923145848,4.534,88.266,88.18,13.62]
[1645923146047,4.533,88.279,88.18,13.62]
[1645923146450,112.2,88.28,88.182,3.05634126]
[1645923146648,112.2,88.28,88.184,2.50986428]
[1645923147048,19.2051257,88.279,88.184,2.50986428]
[1645923147548,19.2051257,88.279,88.2,17.008]
[1645923147749,19.2051257,88.279,88.202,2.44915552]
[1645923147949,23.56551006,88.301,88.202,2.44915552]
[1645923148163,16.89275651,88.294,88.202,2.44915552]
[1645923148460,17.0052,88.29,88.22,17.0052]
[1645923148663,17.0052,88.29,88.221,2.82091488]
[1645923151464,16.89275651,88.291,88.231,2.39364581]
[1645923152464,16.89275651,88.291,88.22,5.31]
[1645923153464,16.89275651,88.291,88.24,17.0021]
[1645923153662,16.89275651,88.291,88.241,3.08459904]
[1645923153863,17.0032,88.3,88.241,3.08459904]
[1645923155568,16.89275651,88.305,88.25,17.0003]
[1645923155772,17.0011,88.31,88.25,22.5803]
[1645923155968,17.0011,88.31,88.251,2.89467788]
[1645923157271,23.56551006,88.309,88.251,2.89467788]
[1645923157470,23.56551006,88.309,88.241,2.37954766]
[1645923157670,47.69480932,88.309,88.241,2.37954766]
[1645923157874,0.05903585,88.308,88.241,2.37954766]
[1645923158071,47.69480932,88.308,88.241,2.37954766]
[1645923158274,23.56551006,88.307,88.241,2.37954766]
[1645923158670,24.12929926,88.306,88.241,2.37954766]
[1645923162973,17.0026,88.3,88.241,2.37954766]
[1645923165981,41.13189926,88.3,88.241,2.37954766]
[1645923172089,23.56551006,88.299,88.241,2.37954766]
[1645923172287,17.0093,88.29,88.203,2.72638581]
[1645923172488,4.532,88.289,88.203,2.72638581]
[1645923172686,28.09751006,88.289,88.203,2.72638581]
[1645923172887,47.69480932,88.289,88.203,2.72638581]
[1645923173091,56.7017,88.28,88.203,2.72638581]
[1645923173487,17.0105,88.27,88.203,2.72638581]
[1645923175487,17.0105,88.27,88.21,17.0088]
[1645923175688,17.0105,88.27,88.211,2.33016761]
[1645923177188,17.0105,88.27,88.22,17.0071]
[1645923177588,17.0046,88.28,88.221,2.60034808]
[1645923177787,17.0046,88.28,88.203,2.90212042]
[1645923177988,17.0046,88.28,88.21,13.62]
[1645923178589,17.0046,88.28,88.23,17.0046]
[1645923178789,17.0046,88.28,88.231,2.64216299]
[1645923181495,17.004,88.29,88.241,2.79058289]
[1645923190523,17.004,88.29,88.25,17.002]
[1645923190721,17.004,88.29,88.251,2.82509489]
[1645923190922,17.0016,88.3,88.251,2.82509489]
[1645923212153,1.83394437,88.299,88.209,4.531]
[1645923212353,4.532,88.298,88.209,4.531]
[1645923212657,4.532,88.298,88.185,2.71499681]
[1645923212658,17.0136,88.28,88.185,2.71499681]
[1645923212860,6.06791822,88.279,88.185,2.71499681]
[1645923213159,113.6,88.278,88.185,2.71499681]
[1645923213458,1.41310462,88.275,88.161,2.80098242]
[1645923213653,17.0148,88.26,88.153,2.6597954]
[1645923213853,33.3548,88.26,88.153,2.6597954]
[1645923214053,4.534,88.259,88.16,17.0152]
[1645923214254,16.34,88.26,88.161,7.13480235]
[1645923214755,17.0144,88.23,88.161,7.13480235]
[1645923214957,21.9485,88.273,88.163,2.7060152]
[1645923215156,17.4145,88.273,88.164,4.534]
[1645923215754,17.4145,88.273,88.167,2.81174884]
[1645923215955,26.41077672,88.287,88.172,2.67087869]
[1645923216153,17.0102,88.25,88.191,2.84517339]
[1645923216753,17.0102,88.25,88.192,4.534]
[1645923217555,17.0084,88.26,88.201,2.80836142]
[1645923217857,26.41077672,88.287,88.201,2.80836142]
[1645923218055,26.41077672,88.287,88.202,4.533]
[1645923218254,26.41077672,88.287,88.201,7.34136142]
[1645923218457,17.0065,88.27,88.201,7.34136142]
[1645923218858,17.0065,88.27,88.21,17.0062]
[1645923219058,17.0065,88.27,88.211,2.85248344]
[1645923222863,17.0065,88.27,88.201,3.11017171]
[1645923223287,17.0065,88.27,88.192,2.32517575]
[1645923224489,17.0065,88.27,88.21,17.0066]
[1645923224697,17.0065,88.27,88.211,2.40809208]
[1645923225792,41.09216606,88.27,88.192,3.05608952]
[1645923225990,0.6786,88.269,88.192,3.05608952]
[1645923226192,4.533,88.268,88.192,3.05608952]
[1645923226393,17.0144,88.25,88.192,3.05608952]
[1645923226790,17.0144,88.25,88.174,2.64865485]
[1645923228995,4.534,88.249,88.174,2.64865485]
[1645923229193,17.0161,88.23,88.174,2.64865485]
[1645923231997,17.0161,88.23,88.154,2.80340384]
[1645923236400,17.0206,88.21,88.154,2.80340384]
[1645923238001,17.0206,88.21,88.141,2.95869361]
[1645923238203,17.0206,88.21,88.14,4.534]
[1645923240205,17.0206,88.21,88.12,16.34]
[1645923240206,1.83729493,88.208,88.111,3.05128146]
[1645923240405,1.83729493,88.208,88.101,2.64728728]
[1645923240406,17.0279,88.19,88.101,2.64728728]
[1645923240606,5.82,88.19,88.101,2.64728728]
[1645923240805,4.537,88.189,88.101,2.64728728]
[1645923241204,4.537,88.196,88.101,2.64728728]
[1645923241405,17.0261,88.17,88.101,2.64728728]
[1645923243706,17.0273,88.16,88.101,2.64728728]
[1645923243909,24.4312,88.178,88.101,2.64728728]
[1645923245508,17.0294,88.15,88.101,2.64728728]
[1645923246509,17.0279,88.16,88.101,2.64728728]
[1645923248109,4.538,88.197,88.101,2.64728728]
[1645923248311,56.7507,88.2,88.101,2.64728728]
[1645923249110,17.0239,88.18,88.102,2.6853426]
[1645923249914,56.7507,88.2,88.102,2.6853426]
[1645923250114,17.0199,88.2,88.103,2.99678921]
[1645923250514,17.0199,88.2,88.104,2.74678921]
[1645923250714,17.0199,88.2,88.105,4.787]
[1645923250914,17.0199,88.2,88.14,17.0196]
[1645923251114,17.0199,88.2,88.141,3.0891768]
[1645923251612,17.0199,88.2,88.131,2.32962792]
[1645923252212,17.0199,88.2,88.132,4.535]
[1645923252613,17.0199,88.2,88.151,2.98644729]
[1645923253914,17.0199,88.2,88.131,3.05683899]
[1645923254113,17.0199,88.2,88.124,2.7519465]
[1645923255617,17.0199,88.2,88.131,2.4631249]
[1645923256217,17.0199,88.2,88.124,2.66849101]
[1645923257542,17.0199,88.2,88.14,17.0218]
[1645923257741,17.0199,88.2,88.141,2.51101574]
[1645923260441,17.0199,88.2,88.151,2.4202181]
[1645923262940,17.0199,88.2,88.141,2.49928282]
[1645923263742,17.0199,88.2,88.124,7.59078001]
[1645923264549,17.0199,88.2,88.131,2.70337985]
[1645923266853,17.0199,88.2,88.141,2.74718391]
[1645923272570,17.0199,88.2,88.15,17.0209]
[1645923272971,17.0199,88.2,88.151,2.68726708]
[1645923276373,34.1011,88.2,88.151,2.68726708]
[1645923279275,17.0199,88.2,88.151,2.68726708]
[1645923287305,17.0199,88.2,88.16,17.0197]
[1645923287504,17.0199,88.2,88.161,3.03498041]
[1645923287908,17.017,88.21,88.161,10.15498041]
[1645923288115,4.535,88.245,88.161,7.12]
[1645923288306,4.535,88.245,88.17,16.518]
[1645923288506,4.534,88.251,88.171,2.4040049]
[1645923288906,23.342,88.252,88.172,4.534]
[1645923289408,23.342,88.252,88.171,2.4040049]
[1645923289605,17.0117,88.24,88.191,2.46000824]
[1645923291009,17.0117,88.24,88.2,17.011]
[1645923291210,17.0117,88.24,88.201,2.36158868]
[1645923291610,17.0095,88.25,88.201,2.36158868]
[1645923293615,17.0095,88.25,88.21,17.0091]
[1645923293812,17.0095,88.25,88.211,2.28615422]
[1645923296113,17.0095,88.25,88.191,2.61323992]
[1645923299518,16.5095,88.25,88.191,2.61323992]
[1645923300924,16.5095,88.25,88.184,3.09108611]
[1645923303123,4.534,88.249,88.184,3.09108611]
[1645923303322,17.015,88.23,88.184,3.09108611]
[1645923316229,17.015,88.23,88.19,17.0135]
[1645923316433,17.015,88.23,88.191,2.41377432]
[1645923316632,17.0111,88.24,88.191,2.41377432]
[1645923316833,24.76099872,88.263,88.181,2.27260964]
[1645923317134,24.76099872,88.276,88.182,2.67838648]
[1645923317339,24.76099872,88.276,88.2,17.0104]
[1645923317539,17.0072,88.26,88.201,25.52358345]
[1645923317736,17.0072,88.26,88.202,2.9503736]
[1645923318533,17.0072,88.26,88.21,17.0067]
[1645923318733,17.0072,88.26,88.211,2.51959592]
[1645923319036,17.0068,88.27,88.202,2.34702891]
[1645923319234,29.2005,88.289,88.202,115.94702891]
[1645923319235,4.533,88.289,88.202,115.94702891]
[1645923319433,112.2,88.29,88.202,147.22196214]
[1645923319634,112.2,88.29,88.221,113.6]
[1645923319834,4.532,88.323,88.231,113.6]
[1645923320035,141.2313,88.324,88.231,2.51166355]
[1645923320235,116.731,88.324,88.231,2.51166355]
[1645923320436,116.731,88.324,88.231,116.11166355]
[1645923320636,112.2,88.324,88.232,2.29391785]
[1645923321237,112.2,88.324,88.235,2.85277131]
[1645923321439,16.9994,88.32,88.24,16.9994]
[1645923321639,16.9994,88.32,88.241,2.5655983]
[1645923322847,16.9994,88.32,88.241,2.0655983]
[1645923323450,16.9994,88.32,88.26,16.9993]
[1645923323648,4.53,88.339,88.271,2.85527504]
[1645923323948,1.26754612,88.352,88.281,2.85193039]
[1645923324150,1.26754612,88.352,88.283,2.63277865]
[1645923324348,137.0656,88.359,88.283,2.63277865]
[1645923324961,137.0656,88.359,88.3,16.9902]
[1645923325161,137.0656,88.359,88.301,2.43631595]
[1645923325961,23.76941455,88.358,88.283,2.37379148]
[1645923326164,16.9934,88.35,88.283,2.37379148]
[1645923326965,16.9934,88.35,88.263,2.51173238]
[1645923326966,1.51495322,88.349,88.263,2.51173238]
[1645923327163,4.529,88.348,88.263,2.51173238]
[1645923327364,52.77856979,88.348,88.235,22.7644]
[1645923327564,17.0004,88.33,88.263,2.88976311]
[1645923327766,4.53,88.329,88.263,2.88976311]
[1645923327964,56.668,88.34,88.263,2.88976311]
[1645923328264,4.529,88.339,88.263,2.88976311]
[1645923328463,16.9987,88.32,88.263,2.88976311]
[1645923328663,4.53,88.351,88.263,2.88976311]
[1645923328863,4.529,88.355,88.264,24.093]
[1645923329065,4.529,88.355,88.265,115.90431819]
[1645923329265,4.529,88.355,88.266,2.53659619]
[1645923329462,4.529,88.355,88.265,113.6]
[1645923329463,24.8656,88.359,88.271,116.37635632]
[1645923329664,24.8656,88.359,88.29,16.9909]
[1645923329863,24.8656,88.359,88.272,3.0122004]
[1645923329864,1.49879888,88.369,88.291,24.77]
[1645923330064,226.8497,88.42,88.292,116.51906704]
[1645923330065,4.527,88.379,88.292,116.51906704]
[1645923330266,4.527,88.379,88.293,2.56789682]
[1645923330464,23.7698,88.383,88.293,2.56789682]
[1645923330665,23.7698,88.383,88.293,5.31468603]
[1645923330865,23.7698,88.383,88.296,2.74966288]
[1645923331066,23.7698,88.383,88.301,113.6]
[1645923331265,23.7698,88.383,88.302,2.9318325]
[1645923331565,23.7698,88.383,88.304,2.3187854]
[1645923332574,23.7698,88.383,88.31,16.9853]
[1645923332768,23.7698,88.383,88.311,2.30203796]
[1645923333166,23.7698,88.383,88.303,5.48576856]
[1645923333370,4.527,88.394,88.304,2.40942429]
[1645923333667,113.6,88.471,88.304,2.40942429]
[1645923333668,4.527,88.416,88.321,116.25327021]
[1645923333867,4.526,88.438,88.331,113.6]
[1645923334066,4.526,88.438,88.333,113.6]
[1645923334267,1.26754612,88.444,88.334,2.2677665]
[1645923334468,1.48397212,88.449,88.335,113.6]
[1645923334667,1.26754612,88.442,88.336,2.3681625]
[1645923334868,1.26754612,88.442,88.35,16.34]
[1645923335067,16.9782,88.44,88.351,25.59170541]
[1645923335368,2.32841572,88.439,88.352,2.51674104]
[1645923335566,2.32841572,88.439,88.351,22.8676]
[1645923335768,5.79254612,88.438,88.351,22.8676]
[1645923336170,0.56811718,88.439,88.351,22.8676]
[1645923336570,1.64473377,88.429,88.351,22.8676]
[1645923336769,4.525,88.428,88.351,22.8676]
[1645923336973,4.525,88.436,88.351,22.8676]
[1645923337171,3.525,88.436,88.351,22.8676]
[1645923337773,4.525,88.438,88.351,22.8676]
[1645923338376,22.90822767,88.438,88.351,22.8676]
[1645923338576,1.70517002,88.409,88.351,22.8676]
[1645923339177,1.37528558,88.415,88.351,22.8676]
[1645923339581,1.51856702,88.414,88.351,22.8676]
[1645923340478,16.9831,88.4,88.351,22.8676]
[1645923341078,25.14842767,88.399,88.322,4.526]
[1645923341281,6.24685726,88.398,88.291,53.03206914]
[1645923341583,16.9894,88.37,88.292,2.2782825]
[1645923341778,16.9894,88.37,88.293,4.527]
[1645923342182,1.45686413,88.369,88.293,4.527]
[1645923342380,1.45686413,88.369,88.292,4.527]
[1645923342579,1.45686413,88.369,88.3,16.9881]
[1645923342781,16.9905,88.36,88.301,4.527]
[1645923342980,16.9905,88.36,88.291,45.9185]
[1645923343180,5.96515282,88.359,88.291,45.9185]
[1645923343384,5.96515282,88.359,88.257,2.47687944]
[1645923343581,4.527,88.359,88.26,16.34]
[1645923343782,6.11810499,88.367,88.261,4.529]
[1645923343981,6.11810499,88.367,88.261,7.02870889]
[1645923344181,31.26653266,88.367,88.261,7.02870889]
[1645923344383,26.51919149,88.366,88.261,7.02870889]
[1645923344582,16.9938,88.35,88.27,16.9949]
[1645923344784,16.9938,88.35,88.271,7.41432066]
[1645923345182,1.74133663,88.349,88.271,4.529]
[1645923345381,4.529,88.348,88.27,16.34]
[1645923345584,5.93900756,88.359,88.271,2.4213285]
[1645923345783,16.9941,88.35,88.271,2.4213285]
[1645923346189,16.9941,88.35,88.272,4.529]
[1645923346585,16.9941,88.35,88.271,2.52111184]
[1645923346985,16.9941,88.35,88.28,16.9932]
[1645923348289,16.9977,88.33,88.274,4.529]
[1645923348484,16.9977,88.33,88.231,48.4918]
[1645923348485,1.82169761,88.329,88.244,4.529]
[1645923348687,1.82169761,88.329,88.233,4.53]
[1645923348886,6.10787472,88.349,88.24,16.34]
[1645923349085,1.75382549,88.348,88.241,4.53]
[1645923349287,4.53,88.347,88.241,4.53]
[1645923349888,17.0001,88.31,88.241,4.53]
[1645923350588,17.0001,88.31,88.24,33.3393]
[1645923351589,17.0001,88.31,88.241,2.84442408]
[1645923351790,17.0001,88.31,88.25,16.9989]
[1645923356796,16.9983,88.32,88.25,16.9989]
[1645923357002,4.531,88.337,88.251,2.32302362]
[1645923357196,1.78134491,88.337,88.27,16.9952]
[1645923357596,47.4894,88.338,88.27,16.9952]
[1645923357997,1.43407869,88.359,88.28,16.34]
[1645923358215,4.529,88.358,88.29,16.9917]
[1645923358617,4.527,88.368,88.29,16.9917]
[1645923358815,1.64461814,88.369,88.29,16.9917]
[1645923359416,16.9906,88.36,88.29,16.9917]
[1645923359717,4.527,88.378,88.29,16.9917]
[1645923359920,4.527,88.378,88.301,2.75513924]
[1645923360120,4.527,88.398,88.31,16.985]
[1645923360324,4.527,88.398,88.32,16.34]
[1645923360517,1.51602401,88.399,88.32,16.34]
[1645923360720,1.51602401,88.399,88.321,2.6210492]
[1645923361117,16.9829,88.4,88.322,4.526]
[1645923362623,16.9829,88.4,88.331,2.82695151]
[1645923363024,16.9829,88.4,88.324,2.82969748]
[1645923363921,24.7955,88.403,88.34,16.9827]
[1645923364121,16.982,88.41,88.34,16.9827]
[1645923364522,4.526,88.412,88.34,16.9827]
[1645923364824,1.45051678,88.413,88.34,16.9827]
[1645923365325,4.526,88.417,88.341,113.6]
[1645923365527,22.7814,88.43,88.341,123.0677637]
[1645923365723,22.7814,88.43,88.35,16.9776]
[1645923365923,22.7814,88.43,88.351,2.35596859]
[1645923366123,1.75248674,88.438,88.351,2.35596859]
[1645923366330,1.80257313,88.444,88.353,2.63194235]
[1645923366523,1.80257313,88.444,88.352,23.2116]
[1645923366723,4.525,88.438,88.35,33.3176]
[1645923366924,4.525,88.438,88.35,16.34]
[1645923367127,1.6877242,88.437,88.35,16.34]
[1645923367523,16.9806,88.43,88.35,16.34]
[1645923367724,1.39887831,88.429,88.35,16.34]
[1645923367927,1.69861555,88.436,88.35,16.34]
[1645923368825,16.9797,88.43,88.35,33.3209]
[1645923369025,1.47722896,88.429,88.35,33.3209]
[1645923373433,16.9775,88.44,88.35,33.3209]
[1645923373630,16.9775,88.44,88.351,2.34413506]
[1645923374233,16.9775,88.44,88.353,2.36339488]
[1645923374934,24.6377,88.445,88.355,113.6]
[1645923375135,24.6377,88.445,88.37,16.34]
[1645923375334,24.6377,88.445,88.39,16.9733]
[1645923375535,24.8325,88.447,88.39,16.9733]
[1645923376135,18.62217836,88.46,88.39,16.9733]
[1645923376338,1.84239814,88.459,88.39,16.9733]
[1645923378739,1.84239814,88.459,88.39,23.9333]
[1645923379140,16.9737,88.46,88.39,23.9333]
[1645923379441,23.6328,88.469,88.39,40.2733]
[1645923379845,23.6328,88.469,88.391,2.75870954]
[1645923380340,23.6328,88.469,88.4,16.9676]
[1645923380540,23.6328,88.469,88.4,33.3076]
[1645923381139,0.68168813,88.472,88.4,33.3076]
[1645923381140,0.68168813,88.472,88.401,2.69082494]
[1645923381340,0.68168813,88.472,88.41,16.9651]
[1645923381545,0.68168813,88.472,88.411,2.45348808]
[1645923381941,0.00811718,88.439,88.411,2.45348808]
[1645923382543,0.00811718,88.439,88.42,16.9645]
[1645923382741,0.00811718,88.439,88.43,16.34]
[1645923382944,0.00811718,88.439,88.431,0.21179266]
[1645923383745,0.00811718,88.439,88.431,8.49179266]
[1645923384846,0.00811718,88.439,88.431,11.0500453]
[1645923386651,0.00811718,88.439,88.433,3.02947705]
[1645923387046,0.00811718,88.439,88.436,2.6694237]
[1645923388350,0.00811718,88.439,88.434,24.7858]
[1645923388848,0.00811718,88.439,88.431,0.21179266]
[1645923389048,0.00811718,88.439,88.391,23.0421]
[1645923397259,0.00811718,88.439,88.38,16.9754]
[1645923397458,16.9759,88.43,88.38,16.9754]
[1645923397658,16.9759,88.43,88.373,24.0699]
[1645923397659,1.48299709,88.429,88.373,24.0699]
[1645923398257,4.524,88.438,88.373,24.0699]
[1645923399575,16.978,88.42,88.373,24.0699]
[1645923399874,4.524,88.438,88.373,24.0699]
[1645923400075,0.00811718,88.439,88.373,24.0699]
[1645923401075,1.69370084,88.429,88.373,24.0699]
[1645923401476,7.42,88.429,88.351,24.5097]
[1645923401676,7.42,88.429,88.342,24.9159]
[1645923401677,6.20312767,88.428,88.342,24.9159]
[1645923401879,6.20312767,88.428,88.339,4.525]
[1645923401880,1.51613882,88.426,88.339,4.525]
[1645923402077,56.6281,88.39,88.306,23.4386]
[1645923402281,1.70449326,88.389,88.306,23.4386]
[1645923402477,7.31,88.39,88.306,23.4386]
[1645923403078,7.31,88.39,88.31,16.34]
[1645923403280,6.20034458,88.419,88.31,16.34]
[1645923403677,16.987,88.38,88.31,33.3288]
[1645923404078,1.78399799,88.398,88.31,33.3288]
[1645923404578,4.527,88.397,88.31,33.3288]
[1645923404777,4.527,88.397,88.31,16.34]
[1645923404979,4.527,88.397,88.302,4.527]
[1645923405179,16.20568337,88.396,88.302,4.527]
[1645923405380,5.91645812,88.395,88.302,4.527]
[1645923405779,28.97284165,88.395,88.302,4.527]
[1645923405980,1.6898533,88.394,88.302,4.527]
[1645923406180,4.527,88.393,88.302,4.527]
[1645923406384,6.25122704,88.393,88.302,4.527]
[1645923406582,16.9895,88.36,88.302,4.527]
[1645923406985,1.64932767,88.359,88.302,4.527]
[1645923407182,5.88604958,88.378,88.302,4.527]